[Event "Titled Tuesday Blitz April 4 Early 2023"]
[White "Fiorito, Francisco"]
[Black "Nguyen, Hong Anh"]
[WhiteFideId "180165"]
[BlackFideId "12406732"]
[WhiteElo "2341"]
[BlackElo "2054"]
[Result "1-0"]
[Round "11"]
[TimeControl "180+2"]
[Date "2023.04.04"]
[WhiteClock "0:00:11"]
[BlackClock "0:00:26"]

1. d4 {[%clk 0:03:00]}  Nf6 {[%clk 0:02:59]} 2. Bf4 {[%clk 0:03:00]}  g6 {[%clk 0:02:58]} 3. e3 {[%clk 0:02:59]}  Bg7 {[%clk 0:02:58]} 4. Nf3 {[%clk 0:02:59]}  O-O {[%clk 0:02:59]} 5. Be2 {[%clk 0:03:00]}  c5 {[%clk 0:02:59]} 6. O-O {[%clk 0:02:55]}  cxd4 {[%clk 0:02:57]} 7. exd4 {[%clk 0:02:55]}  d6 {[%clk 0:02:58]} 8. c3 {[%clk 0:02:54]}  Be6 {[%clk 0:02:57]} 9. Nbd2 {[%clk 0:02:52]}  Qb6 {[%clk 0:02:56]} 10. Qc2 {[%clk 0:02:37]}  Nc6 {[%clk 0:02:55]} 11. Nc4 {[%clk 0:02:34]}  Qc7 {[%clk 0:02:54]} 12. h3 {[%clk 0:02:28]}  Rfc8 {[%clk 0:02:49]} 13. Rac1 {[%clk 0:02:28]}  b5 {[%clk 0:02:46]} 14. Ne3 {[%clk 0:02:19]}  a6 {[%clk 0:02:46]} 15. Rfd1 {[%clk 0:02:17]}  Nd5 {[%clk 0:02:46]} 16. Nxd5 {[%clk 0:02:09]}  Bxd5 {[%clk 0:02:47]} 17. b3 {[%clk 0:02:07]}  Rab8 {[%clk 0:02:39]} 18. Qd2 {[%clk 0:02:06]}  Rd8 {[%clk 0:02:24]} 19. Be3 {[%clk 0:01:59]}  e5 {[%clk 0:02:22]} 20. Bg5 {[%clk 0:01:42]}  Rd7 {[%clk 0:02:18]} 21. dxe5 {[%clk 0:01:26]}  dxe5 {[%clk 0:02:18]} 22. Qe3 {[%clk 0:01:26]}  e4 {[%clk 0:02:13]} 23. Nh2 {[%clk 0:01:19]}  Qb6 {[%clk 0:02:00]} 24. Ng4 {[%clk 0:01:09]}  Qxe3 {[%clk 0:01:54]} 25. fxe3 {[%clk 0:01:08]}  f5 {[%clk 0:01:43]} 26. Nf6+ {[%clk 0:01:05]}  Bxf6 {[%clk 0:01:43]} 27. Bxf6 {[%clk 0:01:05]}  Kf7 {[%clk 0:01:42]} 28. Bg5 {[%clk 0:01:06]}  Ne5 {[%clk 0:01:34]} 29. Bf4 {[%clk 0:01:04]}  Ke6 {[%clk 0:01:34]} 30. Rd4 {[%clk 0:01:00]}  Rbd8 {[%clk 0:01:34]} 31. Rcd1 {[%clk 0:00:59]}  Nc6 {[%clk 0:01:31]} 32. R4d2 {[%clk 0:00:58]}  Kf6 {[%clk 0:01:29]} 33. c4 {[%clk 0:00:54]}  bxc4 {[%clk 0:01:29]} 34. Bxc4 {[%clk 0:00:52]}  Ne7 {[%clk 0:01:20]} 35. Bxa6 {[%clk 0:00:48]}  g5 {[%clk 0:01:19]} 36. Bg3 {[%clk 0:00:46]}  Ke6 {[%clk 0:00:49]} 37. Bb5 {[%clk 0:00:45]}  Rb7 {[%clk 0:00:47]} 38. a4 {[%clk 0:00:33]}  Rf8 {[%clk 0:00:39]} 39. b4 {[%clk 0:00:20]}  f4 {[%clk 0:00:38]} 40. Bf2 {[%clk 0:00:21]}  Bb3 {[%clk 0:00:37]} 41. Rb1 {[%clk 0:00:19]}  Bd5 {[%clk 0:00:34]} 42. Rc1 {[%clk 0:00:18]}  Nf5 {[%clk 0:00:34]} 43. Rxd5 {[%clk 0:00:16]}  fxe3 {[%clk 0:00:31]} 44. Be1 {[%clk 0:00:15]}  Kxd5 {[%clk 0:00:25]} 45. Bc6+ {[%clk 0:00:15]}  Kd4 {[%clk 0:00:25]} 46. Bxb7 {[%clk 0:00:16]}  Rb8 {[%clk 0:00:23]} 47. Ba6 {[%clk 0:00:16]}  e2 {[%clk 0:00:21]} 48. Bb5 {[%clk 0:00:07]}  Ke3 {[%clk 0:00:20]} 49. Rc3+ {[%clk 0:00:07]}  Kf4 {[%clk 0:00:20]} 50. Bxe2 {[%clk 0:00:06]}  Nd4 {[%clk 0:00:20]} 51. Bb5 {[%clk 0:00:04]}  Kf5 {[%clk 0:00:20]} 52. Rc5+ {[%clk 0:00:04]}  Ke6 {[%clk 0:00:20]} 53. Bc3 {[%clk 0:00:05]}  Nc2 {[%clk 0:00:19]} 54. Re5+ {[%clk 0:00:04]}  Kd6 {[%clk 0:00:19]} 55. Rxe4 {[%clk 0:00:05]}  Na3 {[%clk 0:00:19]} 56. Be5+ {[%clk 0:00:04]}  Kd5 {[%clk 0:00:19]} 57. Bxb8 {[%clk 0:00:05]}  Kxe4 {[%clk 0:00:20]} 58. Bc6+ {[%clk 0:00:05]}  Kd4 {[%clk 0:00:20]} 59. b5 {[%clk 0:00:06]}  Kc5 {[%clk 0:00:20]} 60. a5 {[%clk 0:00:06]}  Nc4 {[%clk 0:00:20]} 61. a6 {[%clk 0:00:06]}  Kb6 {[%clk 0:00:20]} 62. a7 {[%clk 0:00:06]}  Nd6 {[%clk 0:00:20]} 63. a8=Q {[%clk 0:00:05]}  Nxb5 {[%clk 0:00:21]} 64. Bxb5 {[%clk 0:00:05]}  Kxb5 {[%clk 0:00:21]} 65. Qb7+ {[%clk 0:00:06]}  Kc5 {[%clk 0:00:22]} 66. Bg3 {[%clk 0:00:07]}  Kd4 {[%clk 0:00:22]} 67. Qxh7 {[%clk 0:00:07]}  Ke3 {[%clk 0:00:21]} 68. Qf5 {[%clk 0:00:08]}  g4 {[%clk 0:00:21]} 69. hxg4 {[%clk 0:00:08]}  Kd4 {[%clk 0:00:22]} 70. g5 {[%clk 0:00:09]}  Ke3 {[%clk 0:00:23]} 71. g6 {[%clk 0:00:10]}  Kd2 {[%clk 0:00:24]} 72. g7 {[%clk 0:00:11]}  Ke2 {[%clk 0:00:25]} 73. g8=Q {[%clk 0:00:11]}  Kd1 {[%clk 0:00:26]} 74. Qgd5+ {[%clk 0:00:11]}  Ke2 {[%clk 0:00:26]} 75. Qfd3# {[%clk 0:00:11]} 1-0


[Site "https://www.chess.com"]

[Event "Titled Tuesday Blitz April 4 Early 2023"]
[White "Vakhidov, Shahzod"]
[Black "Bowden, Karl"]
[WhiteFideId "14205270"]
[BlackFideId "400548"]
[WhiteElo "2212"]
[BlackElo "2472"]
[Result "1/2-1/2"]
[Round "11"]
[TimeControl "180+2"]
[Date "2023.04.04"]
[WhiteClock "0:00:38"]
[BlackClock "0:01:24"]

1. Nf3 {[%clk 0:03:00]}  Nf6 {[%clk 0:02:59]} 2. g3 {[%clk 0:03:01]}  g6 {[%clk 0:02:59]} 3. Bg2 {[%clk 0:03:01]}  Bg7 {[%clk 0:03:00]} 4. O-O {[%clk 0:03:02]}  O-O {[%clk 0:03:01]} 5. d4 {[%clk 0:03:03]}  Nc6 {[%clk 0:02:55]} 6. c4 {[%clk 0:03:03]}  Rb8 {[%clk 0:02:55]} 7. Nc3 {[%clk 0:02:56]}  a6 {[%clk 0:02:54]} 8. d5 {[%clk 0:02:51]}  Na5 {[%clk 0:02:53]} 9. b3 {[%clk 0:02:48]}  c5 {[%clk 0:02:47]} 10. dxc6 {[%clk 0:02:44]}  Nxc6 {[%clk 0:02:46]} 11. Bb2 {[%clk 0:02:43]}  b5 {[%clk 0:02:45]} 12. cxb5 {[%clk 0:02:38]}  axb5 {[%clk 0:02:45]} 13. Nd5 {[%clk 0:02:34]}  Nxd5 {[%clk 0:02:38]} 14. Bxg7 {[%clk 0:02:35]}  Ne3 {[%clk 0:02:29]} 15. Qc1 {[%clk 0:02:24]}  Nxf1 {[%clk 0:02:00]} 16. Qh6 {[%clk 0:02:06]}  f6 {[%clk 0:02:00]} 17. Bxf8 {[%clk 0:01:19]}  Qxf8 {[%clk 0:02:00]} 18. Qxf8+ {[%clk 0:01:18]}  Kxf8 {[%clk 0:02:00]} 19. Bxf1 {[%clk 0:01:16]}  b4 {[%clk 0:01:58]} 20. a4 {[%clk 0:01:14]}  bxa3 {[%clk 0:01:57]} 21. Rxa3 {[%clk 0:01:14]}  d6 {[%clk 0:01:57]} 22. e3 {[%clk 0:01:11]}  Be6 {[%clk 0:01:55]} 23. Bc4 {[%clk 0:01:09]}  Bxc4 {[%clk 0:01:52]} 24. bxc4 {[%clk 0:01:10]}  Rb4 {[%clk 0:01:51]} 25. Rc3 {[%clk 0:01:08]}  Kf7 {[%clk 0:01:42]} 26. Nd4 {[%clk 0:01:02]}  Ne5 {[%clk 0:01:35]} 27. c5 {[%clk 0:00:58]}  dxc5 {[%clk 0:01:35]} 28. Rxc5 {[%clk 0:00:59]}  Rb7 {[%clk 0:01:33]} 29. Kg2 {[%clk 0:00:56]}  Nd7 {[%clk 0:01:31]} 30. Ra5 {[%clk 0:00:54]}  e5 {[%clk 0:01:30]} 31. Nc6 {[%clk 0:00:54]}  Rb6 {[%clk 0:01:28]} 32. Na7 {[%clk 0:00:38]}  Ke6 {[%clk 0:01:24]} 1/2-1/2


[Site "https://www.chess.com"]

[Event "Titled Tuesday Blitz April 4 Early 2023"]
[White "Moral Garcia, Serafin"]
[Black "Hirneise, Jens"]
[WhiteFideId "2201925"]
[BlackFideId "24614734"]
[WhiteElo "2274"]
[BlackElo "2345"]
[Result "0-1"]
[Round "11"]
[TimeControl "180+2"]
[Date "2023.04.04"]
[WhiteClock "0:00:46"]
[BlackClock "0:00:11"]

1. e4 {[%clk 0:03:00]}  c5 {[%clk 0:02:54]} 2. Nf3 {[%clk 0:03:00]}  Nc6 {[%clk 0:02:52]} 3. Bb5 {[%clk 0:02:55]}  e6 {[%clk 0:02:52]} 4. O-O {[%clk 0:02:55]}  Nge7 {[%clk 0:02:52]} 5. Re1 {[%clk 0:02:55]}  h6 {[%clk 0:02:52]} 6. Bxc6 {[%clk 0:02:48]}  Nxc6 {[%clk 0:02:44]} 7. d4 {[%clk 0:02:49]}  cxd4 {[%clk 0:02:45]} 8. Nxd4 {[%clk 0:02:49]}  Be7 {[%clk 0:02:36]} 9. Nxc6 {[%clk 0:02:48]}  dxc6 {[%clk 0:02:29]} 10. Qg4 {[%clk 0:02:47]}  Kf8 {[%clk 0:02:05]} 11. e5 {[%clk 0:02:46]}  h5 {[%clk 0:02:02]} 12. Qf3 {[%clk 0:02:43]}  Bg5 {[%clk 0:01:58]} 13. Nc3 {[%clk 0:02:40]}  Bxc1 {[%clk 0:01:43]} 14. Raxc1 {[%clk 0:02:38]}  Bd7 {[%clk 0:01:37]} 15. Rcd1 {[%clk 0:02:38]}  Qe7 {[%clk 0:01:37]} 16. Ne4 {[%clk 0:02:28]}  Be8 {[%clk 0:01:34]} 17. Rd6 {[%clk 0:02:10]}  Rd8 {[%clk 0:01:30]} 18. Red1 {[%clk 0:02:09]}  Rxd6 {[%clk 0:01:30]} 19. Rxd6 {[%clk 0:02:09]}  h4 {[%clk 0:01:25]} 20. h3 {[%clk 0:02:07]}  Rh6 {[%clk 0:01:09]} 21. a4 {[%clk 0:02:02]}  b6 {[%clk 0:01:08]} 22. a5 {[%clk 0:01:59]}  bxa5 {[%clk 0:01:01]} 23. Qc3 {[%clk 0:01:55]}  Qc7 {[%clk 0:00:59]} 24. Nc5 {[%clk 0:01:37]}  Qb6 {[%clk 0:00:51]} 25. Na4 {[%clk 0:01:31]}  Qb4 {[%clk 0:00:48]} 26. b3 {[%clk 0:01:28]}  Qxc3 {[%clk 0:00:43]} 27. Nxc3 {[%clk 0:01:26]}  Rh5 {[%clk 0:00:44]} 28. f4 {[%clk 0:01:26]}  g5 {[%clk 0:00:44]} 29. fxg5 {[%clk 0:01:19]}  Rxg5 {[%clk 0:00:45]} 30. Rd4 {[%clk 0:01:20]}  Rxe5 {[%clk 0:00:44]} 31. Rxh4 {[%clk 0:01:20]}  Rc5 {[%clk 0:00:44]} 32. Na4 {[%clk 0:01:09]}  Rxc2 {[%clk 0:00:42]} 33. Rg4 {[%clk 0:01:09]}  f5 {[%clk 0:00:39]} 34. Rg5 {[%clk 0:01:05]}  c5 {[%clk 0:00:38]} 35. h4 {[%clk 0:01:04]}  c4 {[%clk 0:00:33]} 36. Nc5 {[%clk 0:01:03]}  cxb3 {[%clk 0:00:30]} 37. Nxb3 {[%clk 0:01:03]}  a4 {[%clk 0:00:31]} 38. Nd4 {[%clk 0:01:02]}  Rc1+ {[%clk 0:00:27]} 39. Kh2 {[%clk 0:01:01]}  a3 {[%clk 0:00:23]} 40. Nxe6+ {[%clk 0:01:00]}  Ke7 {[%clk 0:00:19]} 41. Rg7+ {[%clk 0:00:53]}  Kxe6 {[%clk 0:00:17]} 42. Rxa7 {[%clk 0:00:54]}  Ra1 {[%clk 0:00:16]} 43. Kg3 {[%clk 0:00:53]}  a2 {[%clk 0:00:13]} 44. Ra3 {[%clk 0:00:51]}  Bf7 {[%clk 0:00:12]} 45. h5 {[%clk 0:00:46]}  Bxh5 {[%clk 0:00:11]} 0-1


[Site "https://www.chess.com"]

[Event "Titled Tuesday Blitz April 4 Early 2023"]
[White "Leebit02"]
[Black "Sharapov, Evgeny"]
[BlackFideId "14103133"]
[WhiteElo "2440"]
[BlackElo "2367"]
[Result "0-1"]
[Round "11"]
[TimeControl "180+2"]
[Date "2023.04.04"]
[WhiteClock "0:01:00"]
[BlackClock "0:00:45"]

1. Nf3 {[%clk 0:03:00]}  c5 {[%clk 0:02:59]} 2. b3 {[%clk 0:02:59]}  Nc6 {[%clk 0:02:58]} 3. Bb2 {[%clk 0:02:59]}  Nf6 {[%clk 0:02:57]} 4. c4 {[%clk 0:02:57]}  g6 {[%clk 0:02:56]} 5. g3 {[%clk 0:02:54]}  Bg7 {[%clk 0:02:56]} 6. Bg2 {[%clk 0:02:54]}  O-O {[%clk 0:02:56]} 7. O-O {[%clk 0:02:55]}  d5 {[%clk 0:02:56]} 8. cxd5 {[%clk 0:02:53]}  Nxd5 {[%clk 0:02:56]} 9. Bxg7 {[%clk 0:02:53]}  Kxg7 {[%clk 0:02:56]} 10. d4 {[%clk 0:02:54]}  cxd4 {[%clk 0:02:53]} 11. Nxd4 {[%clk 0:02:54]}  Nxd4 {[%clk 0:02:48]} 12. Qxd4+ {[%clk 0:02:54]}  Nf6 {[%clk 0:02:48]} 13. Qe5 {[%clk 0:02:54]}  Qb6 {[%clk 0:02:35]} 14. Nc3 {[%clk 0:02:50]}  Be6 {[%clk 0:02:34]} 15. Na4 {[%clk 0:02:44]}  Qb4 {[%clk 0:02:19]} 16. Nc5 {[%clk 0:02:39]}  Bg4 {[%clk 0:02:16]} 17. Bxb7 {[%clk 0:02:22]}  Rab8 {[%clk 0:02:10]} 18. a3 {[%clk 0:02:06]}  Qd2 {[%clk 0:01:48]} 19. Rfe1 {[%clk 0:01:53]}  Qd6 {[%clk 0:01:47]} 20. Qe3 {[%clk 0:01:39]}  Nd5 {[%clk 0:01:29]} 21. Bxd5 {[%clk 0:01:33]}  Qxd5 {[%clk 0:01:28]} 22. b4 {[%clk 0:01:32]}  Bh3 {[%clk 0:01:19]} 23. f3 {[%clk 0:01:31]}  Rfe8 {[%clk 0:01:08]} 24. Red1 {[%clk 0:01:30]}  Qc6 {[%clk 0:01:06]} 25. Rac1 {[%clk 0:01:26]}  Qf6 {[%clk 0:01:02]} 26. Ne4 {[%clk 0:01:23]}  Qb2 {[%clk 0:01:01]} 27. Rc3 {[%clk 0:01:11]}  Rbd8 {[%clk 0:00:57]} 28. Rcd3 {[%clk 0:01:00]}  Rxd3 {[%clk 0:00:49]} 29. Rxd3 {[%clk 0:01:00]}  Qb1+ {[%clk 0:00:45]} 0-1


[Site "https://www.chess.com"]

[Event "Titled Tuesday Blitz April 4 Early 2023"]
[White "Forgacs, Attila Jr."]
[Black "Molina, Roberto Junio Brito"]
[WhiteFideId "773654"]
[BlackFideId "2109450"]
[WhiteElo "2168"]
[BlackElo "2376"]
[Result "1-0"]
[Round "11"]
[TimeControl "180+2"]
[Date "2023.04.04"]
[WhiteClock "0:01:34"]
[BlackClock "0:01:28"]

1. e4 {[%clk 0:03:00]}  c6 {[%clk 0:02:59]} 2. d4 {[%clk 0:03:00]}  d5 {[%clk 0:02:59]} 3. Nd2 {[%clk 0:03:01]}  dxe4 {[%clk 0:02:59]} 4. Nxe4 {[%clk 0:03:02]}  Nd7 {[%clk 0:03:00]} 5. Ng5 {[%clk 0:03:02]}  Ngf6 {[%clk 0:03:00]} 6. Bd3 {[%clk 0:03:00]}  h6 {[%clk 0:02:58]} 7. Ne6 {[%clk 0:02:54]}  Qb6 {[%clk 0:02:58]} 8. Nxf8 {[%clk 0:02:52]}  Nxf8 {[%clk 0:02:59]} 9. c3 {[%clk 0:02:51]}  Bg4 {[%clk 0:02:55]} 10. Nf3 {[%clk 0:02:48]}  e6 {[%clk 0:02:52]} 11. O-O {[%clk 0:02:48]}  N8d7 {[%clk 0:02:51]} 12. h3 {[%clk 0:02:48]}  Bxf3 {[%clk 0:02:50]} 13. Qxf3 {[%clk 0:02:47]}  O-O {[%clk 0:02:50]} 14. Qg3 {[%clk 0:02:43]}  Kh8 {[%clk 0:02:50]} 15. b3 {[%clk 0:02:33]}  a5 {[%clk 0:02:47]} 16. Be3 {[%clk 0:02:31]}  Qd8 {[%clk 0:02:43]} 17. Rfe1 {[%clk 0:02:10]}  Re8 {[%clk 0:02:37]} 18. Qh4 {[%clk 0:02:02]}  Nd5 {[%clk 0:02:35]} 19. Qe4 {[%clk 0:01:49]}  N7f6 {[%clk 0:02:22]} 20. Qh4 {[%clk 0:01:49]}  Nxc3 {[%clk 0:02:19]} 21. Bxh6 {[%clk 0:01:48]}  gxh6 {[%clk 0:02:18]} 22. Qxh6+ {[%clk 0:01:49]}  Kg8 {[%clk 0:02:17]} 23. Re3 {[%clk 0:01:42]}  Nh5 {[%clk 0:01:28]} 24. Bh7+ {[%clk 0:01:34]} 1-0


[Site "https://www.chess.com"]

[Event "Titled Tuesday Blitz April 4 Early 2023"]
[White "UNSTOPPABLE_LEGEND"]
[Black "Pranav Anand"]
[BlackFideId "46626786"]
[WhiteElo "2512"]
[BlackElo "2389"]
[Result "0-1"]
[Round "11"]
[TimeControl "180+2"]
[Date "2023.04.04"]
[WhiteClock "0:00:57"]
[BlackClock "0:00:26"]

1. g3 {[%clk 0:02:55]}  h5 {[%clk 0:02:59]} 2. h4 {[%clk 0:02:54]}  d5 {[%clk 0:02:59]} 3. Bg2 {[%clk 0:02:54]}  Nf6 {[%clk 0:02:59]} 4. Nf3 {[%clk 0:02:54]}  Bf5 {[%clk 0:03:00]} 5. d3 {[%clk 0:02:53]}  e6 {[%clk 0:03:00]} 6. c4 {[%clk 0:02:52]}  c6 {[%clk 0:03:00]} 7. Nc3 {[%clk 0:02:51]}  Nbd7 {[%clk 0:03:01]} 8. Nd4 {[%clk 0:02:50]}  Bg6 {[%clk 0:02:58]} 9. cxd5 {[%clk 0:02:48]}  exd5 {[%clk 0:02:57]} 10. e4 {[%clk 0:02:48]}  Bc5 {[%clk 0:02:51]} 11. Nb3 {[%clk 0:02:47]}  Bb6 {[%clk 0:02:47]} 12. O-O {[%clk 0:02:47]}  O-O {[%clk 0:02:46]} 13. Bg5 {[%clk 0:02:43]}  dxe4 {[%clk 0:02:39]} 14. dxe4 {[%clk 0:02:44]}  Qe8 {[%clk 0:02:35]} 15. Qe2 {[%clk 0:02:42]}  Ng4 {[%clk 0:02:33]} 16. Na4 {[%clk 0:02:40]}  Bc7 {[%clk 0:02:31]} 17. Rad1 {[%clk 0:02:36]}  f6 {[%clk 0:02:26]} 18. Bc1 {[%clk 0:02:35]}  Kh7 {[%clk 0:02:22]} 19. Nac5 {[%clk 0:02:26]}  Nxc5 {[%clk 0:02:16]} 20. Nxc5 {[%clk 0:02:27]}  b6 {[%clk 0:02:17]} 21. Nb3 {[%clk 0:02:26]}  c5 {[%clk 0:02:14]} 22. Bd2 {[%clk 0:02:19]}  Rd8 {[%clk 0:02:07]} 23. Bc3 {[%clk 0:02:15]}  Qe6 {[%clk 0:02:07]} 24. Bh3 {[%clk 0:02:12]}  Rxd1 {[%clk 0:01:54]} 25. Rxd1 {[%clk 0:02:12]}  Qxe4 {[%clk 0:01:50]} 26. Qxe4 {[%clk 0:02:05]}  Bxe4 {[%clk 0:01:51]} 27. Rd7 {[%clk 0:02:05]}  Bb8 {[%clk 0:01:51]} 28. Nd2 {[%clk 0:02:01]}  Bc6 {[%clk 0:01:51]} 29. Re7 {[%clk 0:01:59]}  Kg6 {[%clk 0:01:50]} 30. Bf1 {[%clk 0:01:53]}  Rd8 {[%clk 0:01:48]} 31. Be2 {[%clk 0:01:44]}  Ne5 {[%clk 0:01:38]} 32. Bd1 {[%clk 0:01:40]}  b5 {[%clk 0:01:28]} 33. Bc2+ {[%clk 0:01:39]}  Kh6 {[%clk 0:01:28]} 34. Ne4 {[%clk 0:01:28]}  Ng6 {[%clk 0:01:05]} 35. Rf7 {[%clk 0:01:22]}  Bxe4 {[%clk 0:00:39]} 36. Bxe4 {[%clk 0:01:23]}  Ne5 {[%clk 0:00:39]} 37. Rb7 {[%clk 0:01:17]}  b4 {[%clk 0:00:39]} 38. Be1 {[%clk 0:01:15]}  Nc4 {[%clk 0:00:38]} 39. b3 {[%clk 0:01:14]}  Nd6 {[%clk 0:00:30]} 40. Re7 {[%clk 0:01:12]}  Nxe4 {[%clk 0:00:28]} 41. Rxe4 {[%clk 0:01:06]}  Be5 {[%clk 0:00:29]} 42. Rc4 {[%clk 0:00:55]}  Rd1 {[%clk 0:00:27]} 43. Kf1 {[%clk 0:00:55]}  Bc3 {[%clk 0:00:28]} 44. Re4 {[%clk 0:00:55]}  Rxe1+ {[%clk 0:00:28]} 45. Rxe1 {[%clk 0:00:55]}  Bxe1 {[%clk 0:00:29]} 46. Kxe1 {[%clk 0:00:56]}  Kg6 {[%clk 0:00:30]} 47. Ke2 {[%clk 0:00:57]}  Kf5 {[%clk 0:00:31]} 48. f3 {[%clk 0:00:56]}  Ke5 {[%clk 0:00:31]} 49. Kd3 {[%clk 0:00:57]}  Kd5 {[%clk 0:00:31]} 50. g4 {[%clk 0:00:57]}  g6 {[%clk 0:00:32]} 51. f4 {[%clk 0:00:56]}  hxg4 {[%clk 0:00:26]} 52. f5 {[%clk 0:00:56]}  gxf5 {[%clk 0:00:25]} 53. h5 {[%clk 0:00:57]}  Ke6 {[%clk 0:00:26]} 0-1


[Site "https://www.chess.com"]

[Event "Titled Tuesday Blitz April 4 Early 2023"]
[White "Shevtchenko, Olesya"]
[Black "Averjanov, Alexey"]
[WhiteFideId "24131890"]
[BlackFideId "14109867"]
[WhiteElo "2003"]
[BlackElo "2679"]
[Result "1-0"]
[Round "11"]
[TimeControl "180+2"]
[Date "2023.04.04"]
[WhiteClock "0:00:51"]
[BlackClock "0:01:01"]

1. e4 {[%clk 0:02:59]}  c6 {[%clk 0:02:59]} 2. Nc3 {[%clk 0:02:59]}  d5 {[%clk 0:02:59]} 3. Qf3 {[%clk 0:02:59]}  dxe4 {[%clk 0:02:58]} 4. Nxe4 {[%clk 0:03:00]}  Nd7 {[%clk 0:02:58]} 5. d4 {[%clk 0:02:57]}  Ngf6 {[%clk 0:02:57]} 6. Nxf6+ {[%clk 0:02:57]}  Nxf6 {[%clk 0:02:57]} 7. c3 {[%clk 0:02:58]}  Bg4 {[%clk 0:02:56]} 8. Qg3 {[%clk 0:02:58]}  Bh5 {[%clk 0:02:54]} 9. Bc4 {[%clk 0:02:54]}  e6 {[%clk 0:02:53]} 10. Ne2 {[%clk 0:02:51]}  Bxe2 {[%clk 0:02:51]} 11. Bxe2 {[%clk 0:02:50]}  g6 {[%clk 0:02:43]} 12. h4 {[%clk 0:02:44]}  h5 {[%clk 0:02:42]} 13. O-O {[%clk 0:02:43]}  Be7 {[%clk 0:02:42]} 14. Bg5 {[%clk 0:02:41]}  Ne4 {[%clk 0:02:27]} 15. Qe5 {[%clk 0:02:28]}  Nf6 {[%clk 0:02:24]} 16. Bf3 {[%clk 0:02:18]}  O-O {[%clk 0:02:23]} 17. Qe2 {[%clk 0:02:16]}  Nd5 {[%clk 0:02:21]} 18. Bxe7 {[%clk 0:02:13]}  Qxe7 {[%clk 0:02:21]} 19. g3 {[%clk 0:02:14]}  Rfd8 {[%clk 0:02:20]} 20. Rfe1 {[%clk 0:02:14]}  Rd6 {[%clk 0:02:15]} 21. Rad1 {[%clk 0:02:14]}  Rad8 {[%clk 0:02:15]} 22. a4 {[%clk 0:02:10]}  a5 {[%clk 0:02:13]} 23. Qc2 {[%clk 0:02:06]}  Kg7 {[%clk 0:02:13]} 24. Re5 {[%clk 0:02:04]}  Qf6 {[%clk 0:02:12]} 25. Kg2 {[%clk 0:02:04]}  b6 {[%clk 0:02:07]} 26. Rde1 {[%clk 0:02:03]}  Ne7 {[%clk 0:02:06]} 27. Qb3 {[%clk 0:01:57]}  Nd5 {[%clk 0:02:03]} 28. Rg5 {[%clk 0:01:45]}  Kf8 {[%clk 0:02:00]} 29. Rge5 {[%clk 0:01:36]}  Kg7 {[%clk 0:02:00]} 30. Bxd5 {[%clk 0:01:27]}  cxd5 {[%clk 0:01:59]} 31. R1e3 {[%clk 0:01:26]}  Qe7 {[%clk 0:01:51]} 32. Rf3 {[%clk 0:01:24]}  Rb8 {[%clk 0:01:47]} 33. Qb5 {[%clk 0:01:21]}  Qd7 {[%clk 0:01:43]} 34. Qe2 {[%clk 0:01:02]}  Qxa4 {[%clk 0:01:42]} 35. Rxh5 {[%clk 0:00:58]}  Rbd8 {[%clk 0:01:07]} 36. Qe5+ {[%clk 0:00:58]}  Kf8 {[%clk 0:01:05]} 37. Rxf7+ {[%clk 0:00:50]}  Kxf7 {[%clk 0:01:03]} 38. Rh7+ {[%clk 0:00:51]}  Ke8 {[%clk 0:01:01]} 39. Qh8# {[%clk 0:00:51]} 1-0


[Site "https://www.chess.com"]

[Event "Titled Tuesday Blitz April 4 Early 2023"]
[White "Novikov, Evgenij"]
[Black "Piesik, Piotr"]
[WhiteFideId "4125380"]
[BlackFideId "1136194"]
[WhiteElo "2242"]
[BlackElo "2299"]
[Result "1-0"]
[Round "11"]
[TimeControl "180+2"]
[Date "2023.04.04"]
[WhiteClock "0:01:30"]
[BlackClock "0:02:17"]

1. d4 {[%clk 0:03:00]}  c5 {[%clk 0:02:59]} 2. e4 {[%clk 0:02:58]}  cxd4 {[%clk 0:02:58]} 3. c3 {[%clk 0:02:58]}  dxc3 {[%clk 0:02:58]} 4. Nxc3 {[%clk 0:02:59]}  Nc6 {[%clk 0:02:58]} 5. Nf3 {[%clk 0:02:59]}  d6 {[%clk 0:02:58]} 6. Bc4 {[%clk 0:02:58]}  e6 {[%clk 0:02:59]} 7. O-O {[%clk 0:02:58]}  a6 {[%clk 0:02:59]} 8. Bf4 {[%clk 0:02:56]}  b5 {[%clk 0:02:58]} 9. Bb3 {[%clk 0:02:55]}  Bb7 {[%clk 0:02:56]} 10. Qe2 {[%clk 0:02:55]}  Nf6 {[%clk 0:02:52]} 11. Rfd1 {[%clk 0:02:53]}  Qb8 {[%clk 0:02:52]} 12. e5 {[%clk 0:02:17]}  Nh5 {[%clk 0:02:42]} 13. exd6 {[%clk 0:02:16]}  Nxf4 {[%clk 0:02:41]} 14. d7+ {[%clk 0:02:15]}  Kd8 {[%clk 0:02:42]} 15. Qe3 {[%clk 0:02:09]}  Be7 {[%clk 0:02:34]} 16. Ne4 {[%clk 0:01:46]}  Na5 {[%clk 0:02:20]} 17. Rac1 {[%clk 0:01:44]}  Bxe4 {[%clk 0:02:17]} 18. Rc8+ {[%clk 0:01:32]}  Qxc8 {[%clk 0:02:17]} 19. dxc8=Q+ {[%clk 0:01:33]}  Kxc8 {[%clk 0:02:17]} 20. Qxe4 {[%clk 0:01:30]} 1-0


[Site "https://www.chess.com"]

[Event "Titled Tuesday Blitz April 4 Early 2023"]
[White "Korelskiy, Egor"]
[Black "Al-Tarboush, Ward"]
[WhiteFideId "34329064"]
[BlackFideId "7601450"]
[WhiteElo "2186"]
[BlackElo "2265"]
[Result "0-1"]
[Round "11"]
[TimeControl "180+2"]
[Date "2023.04.04"]
[WhiteClock "0:00:02"]
[BlackClock "0:00:37"]

1. e4 {[%clk 0:03:00]}  b6 {[%clk 0:02:56]} 2. d4 {[%clk 0:02:59]}  Bb7 {[%clk 0:02:56]} 3. Nc3 {[%clk 0:02:59]}  e6 {[%clk 0:02:57]} 4. g4 {[%clk 0:02:51]}  Bb4 {[%clk 0:02:56]} 5. Bg2 {[%clk 0:02:50]}  Nf6 {[%clk 0:02:54]} 6. f3 {[%clk 0:02:46]}  c5 {[%clk 0:02:33]} 7. Ne2 {[%clk 0:02:28]}  cxd4 {[%clk 0:02:31]} 8. Nxd4 {[%clk 0:02:25]}  Nc6 {[%clk 0:02:29]} 9. Nxc6 {[%clk 0:02:21]}  Bxc6 {[%clk 0:02:25]} 10. Bd2 {[%clk 0:02:17]}  d5 {[%clk 0:02:15]} 11. exd5 {[%clk 0:02:16]}  Nxd5 {[%clk 0:02:09]} 12. Nxd5 {[%clk 0:02:14]}  Qh4+ {[%clk 0:02:08]} 13. Kf1 {[%clk 0:02:07]}  Bb5+ {[%clk 0:01:32]} 14. Kg1 {[%clk 0:02:06]}  Bc5+ {[%clk 0:01:23]} 15. Be3 {[%clk 0:01:53]}  exd5 {[%clk 0:01:19]} 16. Bxc5 {[%clk 0:01:52]}  bxc5 {[%clk 0:01:20]} 17. Qxd5 {[%clk 0:01:23]}  O-O {[%clk 0:01:19]} 18. Qxc5 {[%clk 0:01:23]}  a6 {[%clk 0:01:16]} 19. Qf2 {[%clk 0:01:21]}  Qf6 {[%clk 0:01:16]} 20. h4 {[%clk 0:01:13]}  Rfe8 {[%clk 0:01:15]} 21. Kh2 {[%clk 0:01:06]}  Re2 {[%clk 0:01:15]} 22. Qg3 {[%clk 0:01:06]}  Qxb2 {[%clk 0:01:13]} 23. Rae1 {[%clk 0:01:03]}  Qxc2 {[%clk 0:01:12]} 24. Rxe2 {[%clk 0:01:03]}  Qxe2 {[%clk 0:01:12]} 25. Re1 {[%clk 0:01:03]}  Qxa2 {[%clk 0:01:12]} 26. Qe5 {[%clk 0:00:53]}  h6 {[%clk 0:01:09]} 27. Qc5 {[%clk 0:00:40]}  Qd2 {[%clk 0:01:04]} 28. Rc1 {[%clk 0:00:10]}  Rd8 {[%clk 0:01:02]} 29. Rc2 {[%clk 0:00:08]}  Qf4+ {[%clk 0:01:02]} 30. Kh3 {[%clk 0:00:08]}  Rd3 {[%clk 0:00:48]} 31. Qc8+ {[%clk 0:00:08]}  Kh7 {[%clk 0:00:48]} 32. Qb7 {[%clk 0:00:07]}  Bd7 {[%clk 0:00:38]} 33. Re2 {[%clk 0:00:02]}  Bxg4# {[%clk 0:00:37]} 0-1


[Site "https://www.chess.com"]